[Event "*** Titled Tuesday Blitz"]
[Site "Chess.com"]
[Date "2020.04.14"]
[Round "2"]
[White "Semetey"]
[Black "AyMitecK"]
[Result "0-1"]
[WhiteElo "2550"]
[BlackElo "2312"]
[TimeControl "180+1"]
[EndTime "10:20:02 PDT"]
[Termination "AyMitecK won by checkmate"]

1. d4 {[%clk 0:02:14.9]} 1... Nf6 {[%clk 0:02:59]} 2. Nc3 {[%clk 0:02:14.9]}
2... c5 {[%clk 0:02:50.6]} 3. d5 {[%clk 0:02:11.1]} 3... e6 {[%clk 0:02:48.1]}
4. e4 {[%clk 0:02:07.9]} 4... exd5 {[%clk 0:02:42.9]} 5. exd5 {[%clk 0:02:06.4]}
5... d6 {[%clk 0:02:36]} 6. Bd3 {[%clk 0:01:59.3]} 6... g6 {[%clk 0:02:36.1]} 7.
h3 {[%clk 0:01:54.1]} 7... Bg7 {[%clk 0:02:36]} 8. Qe2+ {[%clk 0:01:51]} 8...
Qe7 {[%clk 0:02:35.5]} 9. Qxe7+ {[%clk 0:01:51]} 9... Kxe7 {[%clk 0:02:36.4]}
10. Nf3 {[%clk 0:01:50.7]} 10... a6 {[%clk 0:02:36]} 11. a4 {[%clk 0:01:50.6]}
11... Nbd7 {[%clk 0:02:36.1]} 12. Bf4 {[%clk 0:01:50.4]} 12... Nh5 {[%clk
0:02:30.1]} 13. Bg5+ {[%clk 0:01:47.8]} 13... f6 {[%clk 0:02:27.5]} 14. Bd2
{[%clk 0:01:45.8]} 14... f5 {[%clk 0:02:17]} 15. g4 {[%clk 0:01:39.6]} 15...
fxg4 {[%clk 0:02:09.9]} 16. hxg4 {[%clk 0:01:37.6]} 16... Nhf6 {[%clk 0:02:10]}
17. g5 {[%clk 0:01:33.1]} 17... Nh5 {[%clk 0:02:05.2]} 18. O-O-O {[%clk
0:01:31.7]} 18... Ne5 {[%clk 0:01:52.2]} 19. Rde1 {[%clk 0:01:29.8]} 19... Kd8
{[%clk 0:01:41.7]} 20. Nxe5 {[%clk 0:01:29.7]} 20... Bxe5 {[%clk 0:01:42.6]} 21.
Be2 {[%clk 0:01:23.2]} 21... Nf4 {[%clk 0:01:38.9]} 22. Rh4 {[%clk 0:01:11.7]}
22... Ng2 {[%clk 0:01:34.6]} 23. Reh1 {[%clk 0:01:09.8]} 23... Nxh4 {[%clk
0:01:34.3]} 24. Rxh4 {[%clk 0:01:10.2]} 24... Bf5 {[%clk 0:01:34.4]} 25. f4
{[%clk 0:01:07.4]} 25... Bg7 {[%clk 0:01:28.3]} 26. Nd1 {[%clk 0:01:00.3]} 26...
h6 {[%clk 0:01:24.4]} 27. Ne3 {[%clk 0:00:46.8]} 27... hxg5 {[%clk 0:01:19.4]}
28. Rxh8+ {[%clk 0:00:46.4]} 28... Bxh8 {[%clk 0:01:20.3]} 29. Nxf5 {[%clk
0:00:45.7]} 29... gxf5 {[%clk 0:01:21.2]} 30. fxg5 {[%clk 0:00:45.7]} 30... Ke7
{[%clk 0:01:18.1]} 31. Bd3 {[%clk 0:00:41.3]} 31... Rf8 {[%clk 0:01:16.7]} 32.
b4 {[%clk 0:00:33.5]} 32... cxb4 {[%clk 0:00:54.5]} 33. Bxb4 {[%clk 0:00:33.2]}
33... Be5 {[%clk 0:00:55.1]} 34. Kd1 {[%clk 0:00:32.4]} 34... f4 {[%clk
0:00:50.5]} 35. c4 {[%clk 0:00:30.2]} 35... b6 {[%clk 0:00:39.8]} 36. g6 {[%clk
0:00:28.5]} 36... a5 {[%clk 0:00:35.7]} 37. Be1 {[%clk 0:00:26.6]} 37... Bd4
{[%clk 0:00:31.4]} 38. Bh4+ {[%clk 0:00:25.9]} 38... Bf6 {[%clk 0:00:30.1]} 39.
Bf2 {[%clk 0:00:25.7]} 39... Rb8 {[%clk 0:00:30.5]} 40. Ke2 {[%clk 0:00:25.4]}
40... Kf8 {[%clk 0:00:29.8]} 41. Kf3 {[%clk 0:00:25.7]} 41... Be5 {[%clk
0:00:29.5]} 42. Bh4 {[%clk 0:00:25.9]} 42... Kg7 {[%clk 0:00:29.2]} 43. Bg5
{[%clk 0:00:25.2]} 43... Rh8 {[%clk 0:00:26.5]} 44. Kg4 {[%clk 0:00:25.5]} 44...
Rh1 {[%clk 0:00:26.2]} 45. Bxf4 {[%clk 0:00:17.7]} 45... Rg1+ {[%clk 0:00:25.2]}
46. Kf5 {[%clk 0:00:17.9]} 46... Bxf4 {[%clk 0:00:22.3]} 47. Kxf4 {[%clk
0:00:16.6]} 47... Kf6 {[%clk 0:00:20.9]} 48. Be4 {[%clk 0:00:11.3]} 48... Rf1+
{[%clk 0:00:19.1]} 49. Ke3 {[%clk 0:00:11.4]} 49... Ra1 {[%clk 0:00:19.1]} 50.
Bc2 {[%clk 0:00:10.9]} 50... Ra2 {[%clk 0:00:18.8]} 51. Kd3 {[%clk 0:00:11.1]}
51... Ra3+ {[%clk 0:00:18.4]} 52. Kd4 {[%clk 0:00:11.1]} 52... Ra2 {[%clk
0:00:18.4]} 53. Kc3 {[%clk 0:00:11.2]} 53... Ra1 {[%clk 0:00:18.2]} 54. Kb2
{[%clk 0:00:11.6]} 54... Rg1 {[%clk 0:00:17.5]} 55. Be4 {[%clk 0:00:11]} 55...
Ke5 {[%clk 0:00:17.3]} 56. Bc2 {[%clk 0:00:10.9]} 56... Kd4 {[%clk 0:00:17.4]}
57. Kb3 {[%clk 0:00:11.4]} 57... Rg3+ {[%clk 0:00:16.7]} 58. Kb2 {[%clk
0:00:11.9]} 58... Kc5 {[%clk 0:00:16.9]} 59. Ka2 {[%clk 0:00:11.5]} 59... Kxc4
{[%clk 0:00:16.8]} 60. Kb2 {[%clk 0:00:12.2]} 60... Kxd5 {[%clk 0:00:17]} 61.
Bb3+ {[%clk 0:00:12.3]} 61... Kd4 {[%clk 0:00:15.8]} 62. Bf7 {[%clk 0:00:12.9]}
62... Ke5 {[%clk 0:00:15.2]} 63. Kc2 {[%clk 0:00:13.4]} 63... Kf6 {[%clk
0:00:15.5]} 64. Be8 {[%clk 0:00:13.5]} 64... Rxg6 {[%clk 0:00:15.5]} 65. Bxg6
{[%clk 0:00:13.2]} 65... Kxg6 {[%clk 0:00:16.4]} 66. Kd3 {[%clk 0:00:13.8]}
66... Kf5 {[%clk 0:00:16.8]} 67. Kc4 {[%clk 0:00:14.2]} 67... Ke4 {[%clk
0:00:16.1]} 68. Kb5 {[%clk 0:00:14.6]} 68... d5 {[%clk 0:00:16.7]} 69. Kxb6
{[%clk 0:00:15]} 69... d4 {[%clk 0:00:17.3]} 70. Kxa5 {[%clk 0:00:15.3]} 70...
d3 {[%clk 0:00:18]} 71. Kb6 {[%clk 0:00:15.7]} 71... d2 {[%clk 0:00:18.6]} 72.
a5 {[%clk 0:00:12.6]} 72... d1=Q {[%clk 0:00:19.5]} 73. a6 {[%clk 0:00:12.6]}
73... Qd8+ {[%clk 0:00:16.6]} 74. Kb7 {[%clk 0:00:10.3]} 74... Qd5+ {[%clk
0:00:16.2]} 75. Kb8 {[%clk 0:00:09.7]} 75... Qb5+ {[%clk 0:00:14.4]} 76. Ka7
{[%clk 0:00:09.6]} 76... Kd5 {[%clk 0:00:13.5]} 77. Ka8 {[%clk 0:00:10]} 77...
Qxa6+ {[%clk 0:00:13.9]} 78. Kb8 {[%clk 0:00:10]} 78... Qf6 {[%clk 0:00:14.6]}
79. Kc7 {[%clk 0:00:09.6]} 79... Kc5 {[%clk 0:00:14.1]} 80. Kc8 {[%clk
0:00:09.7]} 80... Qe7 {[%clk 0:00:13.7]} 81. Kb8 {[%clk 0:00:09.3]} 81... Kb6
{[%clk 0:00:14.1]} 82. Ka8 {[%clk 0:00:09.3]} 82... Qe8# {[%clk 0:00:14.4]} 0-1

[Event "*** Titled Tuesday Blitz"]
[Site "Chess.com"]
[Date "2020.04.14"]
[Round "3"]
[White "Rinas_Oleg"]
[Black "Toro1234"]
[Result "0-1"]
[WhiteElo "2389"]
[BlackElo "2625"]
[TimeControl "180+1"]
[EndTime "10:23:25 PDT"]
[Termination "Toro1234 won by resignation"]

1. e4 {[%clk 0:03:00.9]} 1... d6 {[%clk 0:02:58.7]} 2. d4 {[%clk 0:02:56.6]}
2... Nf6 {[%clk 0:02:59.2]} 3. Nc3 {[%clk 0:02:54.9]} 3... e5 {[%clk 0:02:59.6]}
4. Nf3 {[%clk 0:02:48.5]} 4... Nbd7 {[%clk 0:02:58.9]} 5. Bc4 {[%clk 0:02:41.9]}
5... Be7 {[%clk 0:02:58.9]} 6. dxe5 {[%clk 0:02:26.1]} 6... dxe5 {[%clk
0:02:55.9]} 7. Nd5 {[%clk 0:02:19]} 7... Nxd5 {[%clk 0:02:54.4]} 8. Qxd5 {[%clk
0:02:15.6]} 8... O-O {[%clk 0:02:51.4]} 9. Nxe5 {[%clk 0:02:00.1]} 9... c6
{[%clk 0:02:48.3]} 10. Qd4 {[%clk 0:01:47.8]} 10... Qa5+ {[%clk 0:02:47]} 11.
Bd2 {[%clk 0:01:34]} 11... Qxe5 {[%clk 0:02:46.5]} 0-1

[Event "*** Titled Tuesday Blitz"]
[Site "Chess.com"]
[Date "2020.04.14"]
[Round "3"]
[White "Andrii_Prydun"]
[Black "pitopisback"]
[Result "1-0"]
[WhiteElo "2339"]
[BlackElo "2123"]
[TimeControl "180+1"]
[EndTime "10:24:02 PDT"]
[Termination "Andrii_Prydun won by resignation"]

1. d4 {[%clk 0:02:38.2]} 1... Nf6 {[%clk 0:02:56.5]} 2. Nf3 {[%clk 0:02:36.5]}
2... g6 {[%clk 0:02:56.6]} 3. g3 {[%clk 0:02:36.7]} 3... Bg7 {[%clk 0:02:57]} 4.
Bg2 {[%clk 0:02:37.1]} 4... O-O {[%clk 0:02:57.6]} 5. O-O {[%clk 0:02:37.5]}
5... d6 {[%clk 0:02:58.1]} 6. Nc3 {[%clk 0:02:35.4]} 6... Nbd7 {[%clk
0:02:57.4]} 7. e4 {[%clk 0:02:35.2]} 7... e5 {[%clk 0:02:57.3]} 8. dxe5 {[%clk
0:02:34.6]} 8... dxe5 {[%clk 0:02:56]} 9. h3 {[%clk 0:02:31.9]} 9... Qe7 {[%clk
0:02:48.8]} 10. Be3 {[%clk 0:02:31.4]} 10... c6 {[%clk 0:02:47.8]} 11. Qe2
{[%clk 0:02:28.9]} 11... b5 {[%clk 0:02:38.5]} 12. Rad1 {[%clk 0:02:18.7]} 12...
Nb6 {[%clk 0:02:34.2]} 13. Nd2 {[%clk 0:02:10.2]} 13... a5 {[%clk 0:02:24.9]}
14. Nb3 {[%clk 0:02:09]} 14... b4 {[%clk 0:02:22.7]} 15. Bxb6 {[%clk 0:02:07]}
15... bxc3 {[%clk 0:02:22.2]} 16. Bc5 {[%clk 0:02:07]} 16... Qe8 {[%clk
0:02:18.1]} 17. Bxf8 {[%clk 0:02:07.1]} 17... Ba6 {[%clk 0:02:16.8]} 18. Qf3
{[%clk 0:02:02.4]} 18... Bxf1 {[%clk 0:02:17]} 19. Bxg7 {[%clk 0:02:01.8]} 19...
Bxg2 {[%clk 0:02:17.3]} 20. Qxf6 {[%clk 0:02:01.4]} 20... Bxe4 {[%clk
0:02:02.2]} 21. Bh6 {[%clk 0:02:00.7]} 1-0

[Event "*** Titled Tuesday Blitz"]
[Site "Chess.com"]
[Date "2020.04.14"]
[Round "3"]
[White "kaumandur01"]
[Black "albi1999"]
[Result "1-0"]
[WhiteElo "2799"]
[BlackElo "2587"]
[TimeControl "180+1"]
[EndTime "10:24:06 PDT"]
[Termination "kaumandur01 won by resignation"]

1. e4 {[%clk 0:03:00.9]} 1... c6 {[%clk 0:03:00]} 2. d4 {[%clk 0:03:00.3]} 2...
d5 {[%clk 0:03:00.9]} 3. e5 {[%clk 0:03:00.8]} 3... Bf5 {[%clk 0:03:00.8]} 4.
Nd2 {[%clk 0:03:00.7]} 4... e6 {[%clk 0:02:58.6]} 5. Nb3 {[%clk 0:03:00.6]} 5...
c5 {[%clk 0:02:52.6]} 6. dxc5 {[%clk 0:02:39.2]} 6... Bxc5 {[%clk 0:02:52]} 7.
Nxc5 {[%clk 0:02:38.6]} 7... Qa5+ {[%clk 0:02:51.9]} 8. c3 {[%clk 0:02:37.4]}
8... Qxc5 {[%clk 0:02:52.2]} 9. Be3 {[%clk 0:02:38]} 9... Qc7 {[%clk 0:02:52.4]}
10. f4 {[%clk 0:02:38.5]} 10... Ne7 {[%clk 0:02:50.2]} 11. Nf3 {[%clk 0:02:39]}
11... Nd7 {[%clk 0:02:47.6]} 12. Be2 {[%clk 0:02:38.5]} 12... O-O {[%clk
0:02:44.4]} 13. O-O {[%clk 0:02:37.8]} 13... Rac8 {[%clk 0:02:33.1]} 14. Nd4
{[%clk 0:02:36.2]} 14... Be4 {[%clk 0:02:32.5]} 15. Nb5 {[%clk 0:02:34.7]} 15...
Qa5 {[%clk 0:02:10.1]} 16. Nd6 {[%clk 0:02:15.6]} 16... Rc7 {[%clk 0:01:59.9]}
17. b4 {[%clk 0:02:12.4]} 1-0

[Event "*** Titled Tuesday Blitz"]
[Site "Chess.com"]
[Date "2020.04.14"]
[Round "3"]
[White "FM_Deuteronomio32"]
[Black "kingmonkey2006"]
[Result "0-1"]
[WhiteElo "2239"]
[BlackElo "2593"]
[TimeControl "180+1"]
[EndTime "10:24:30 PDT"]
[Termination "kingmonkey2006 won by resignation"]

1. e4 {[%clk 0:03:00.9]} 1... c5 {[%clk 0:02:58.6]} 2. Nf3 {[%clk 0:03:00.9]}
2... d6 {[%clk 0:02:57.3]} 3. Nc3 {[%clk 0:02:58.9]} 3... a6 {[%clk 0:02:57.2]}
4. d4 {[%clk 0:02:58.8]} 4... cxd4 {[%clk 0:02:58.1]} 5. Nxd4 {[%clk 0:02:59.5]}
5... Nf6 {[%clk 0:02:57.7]} 6. a3 {[%clk 0:02:59.5]} 6... e6 {[%clk 0:02:54.2]}
7. Be2 {[%clk 0:02:43.1]} 7... Be7 {[%clk 0:02:53.8]} 8. Be3 {[%clk 0:02:42.9]}
8... O-O {[%clk 0:02:54.4]} 9. f4 {[%clk 0:02:43.4]} 9... b5 {[%clk 0:02:54.9]}
10. O-O {[%clk 0:02:39.5]} 10... Bb7 {[%clk 0:02:55.2]} 11. Bf3 {[%clk
0:02:35.1]} 11... Qc7 {[%clk 0:02:55.6]} 12. Re1 {[%clk 0:02:32.1]} 12... Nbd7
{[%clk 0:02:55.4]} 13. Qd2 {[%clk 0:02:23.4]} 13... Rfd8 {[%clk 0:02:55.2]} 14.
g4 {[%clk 0:02:20.4]} 14... Nb6 {[%clk 0:02:54.2]} 15. b3 {[%clk 0:02:13]} 15...
Rac8 {[%clk 0:02:53.6]} 16. Nde2 {[%clk 0:02:12.3]} 16... d5 {[%clk 0:02:50.1]}
17. e5 {[%clk 0:01:30.1]} 17... d4 {[%clk 0:02:50.2]} 0-1

[Event "*** Titled Tuesday Blitz"]
[Site "Chess.com"]
[Date "2020.04.14"]
[Round "3"]
[White "VolodymyrMolyboha"]
[Black "Nikolaj_6"]
[Result "1-0"]
[WhiteElo "2442"]
[BlackElo "2610"]
[TimeControl "180+1"]
[EndTime "10:24:36 PDT"]
[Termination "VolodymyrMolyboha won by resignation"]

1. e4 {[%clk 0:03:00.9]} 1... c5 {[%clk 0:02:59.4]} 2. Nf3 {[%clk 0:03:00.4]}
2... d6 {[%clk 0:02:59.6]} 3. c3 {[%clk 0:03:00.3]} 3... Nf6 {[%clk 0:02:59.2]}
4. h3 {[%clk 0:03:00.6]} 4... Nc6 {[%clk 0:02:58]} 5. Bd3 {[%clk 0:03:00.8]}
5... d5 {[%clk 0:02:58]} 6. exd5 {[%clk 0:03:00.9]} 6... Qxd5 {[%clk 0:02:57]}
7. Bb5 {[%clk 0:02:58.1]} 7... a6 {[%clk 0:02:54.4]} 8. Bxc6+ {[%clk 0:02:56.3]}
8... Qxc6 {[%clk 0:02:54.3]} 9. O-O {[%clk 0:02:54.8]} 9... e6 {[%clk
0:02:53.5]} 10. d4 {[%clk 0:02:55]} 10... Be7 {[%clk 0:02:53]} 11. Nbd2 {[%clk
0:02:52.1]} 11... O-O {[%clk 0:02:52.2]} 12. Qe2 {[%clk 0:02:52.4]} 12... b5
{[%clk 0:02:51.9]} 13. Ne5 {[%clk 0:02:51.3]} 13... Qc7 {[%clk 0:02:51.2]} 14.
Ndf3 {[%clk 0:02:51.5]} 14... Bb7 {[%clk 0:02:50.2]} 15. Bf4 {[%clk 0:02:51.7]}
15... Qb6 {[%clk 0:02:47.9]} 16. dxc5 {[%clk 0:02:51.2]} 16... Bxc5 {[%clk
0:02:44.8]} 17. Rad1 {[%clk 0:02:49.3]} 17... Rad8 {[%clk 0:02:42.6]} 18. Rxd8
{[%clk 0:02:45]} 18... Rxd8 {[%clk 0:02:41.6]} 19. Ng5 {[%clk 0:02:45.1]} 19...
Nd5 {[%clk 0:02:37.7]} 20. Qh5 {[%clk 0:02:34.6]} 20... Nxf4 {[%clk 0:02:28.8]}
21. Qxf7+ {[%clk 0:02:23.6]} 21... Kh8 {[%clk 0:02:28.9]} 22. Qxf4 {[%clk
0:02:23.3]} 22... Rf8 {[%clk 0:02:26.6]} 23. Qh4 {[%clk 0:02:19.3]} 23... h6
{[%clk 0:02:22]} 24. Ng6+ {[%clk 0:02:17.5]} 24... Kg8 {[%clk 0:02:22.1]} 25.
Nxf8 {[%clk 0:02:16.1]} 25... Bxf8 {[%clk 0:02:22.7]} 26. Nf3 {[%clk 0:02:09.6]}
26... Bxf3 {[%clk 0:02:22.1]} 27. gxf3 {[%clk 0:02:09.6]} 27... Qc6 {[%clk
0:02:20.9]} 28. Qe4 {[%clk 0:02:09.2]} 28... Qd6 {[%clk 0:02:17.2]} 29. Re1
{[%clk 0:02:08.9]} 29... Qd2 {[%clk 0:02:14.7]} 30. Qxe6+ {[%clk 0:02:07.9]}
30... Kh7 {[%clk 0:02:12.7]} 31. Qe4+ {[%clk 0:02:01.9]} 31... Kg8 {[%clk
0:02:12.1]} 32. Re2 {[%clk 0:02:01.7]} 32... Qd1+ {[%clk 0:02:10.2]} 33. Kg2
{[%clk 0:02:02]} 33... Qd8 {[%clk 0:02:05.3]} 34. Qg6 {[%clk 0:01:56.5]} 1-0

[Event "*** Titled Tuesday Blitz"]
[Site "Chess.com"]
[Date "2020.04.14"]
[Round "3"]
[White "NormWeinstein"]
[Black "MateSchmate"]
[Result "1-0"]
[WhiteElo "2364"]
[BlackElo "2558"]
[TimeControl "180+1"]
[EndTime "10:24:36 PDT"]
[Termination "NormWeinstein won by resignation"]

1. e4 {[%clk 0:03:00.9]} 1... e6 {[%clk 0:03:00]} 2. d3 {[%clk 0:03:00.4]} 2...
d5 {[%clk 0:03:00.9]} 3. Nd2 {[%clk 0:03:00.2]} 3... Bc5 {[%clk 0:03:01.1]} 4.
Ngf3 {[%clk 0:02:59.9]} 4... Nf6 {[%clk 0:03:00.8]} 5. Be2 {[%clk 0:02:59.9]}
5... O-O {[%clk 0:02:59.5]} 6. O-O {[%clk 0:03:00.4]} 6... b6 {[%clk 0:02:52.4]}
7. c3 {[%clk 0:02:59.4]} 7... Nbd7 {[%clk 0:02:47.6]} 8. e5 {[%clk 0:02:58.5]}
8... Ne8 {[%clk 0:02:47.2]} 9. d4 {[%clk 0:02:58.3]} 9... Be7 {[%clk 0:02:47.6]}
10. Bd3 {[%clk 0:02:57]} 10... h6 {[%clk 0:02:47.2]} 11. Re1 {[%clk 0:02:55.3]}
11... f5 {[%clk 0:02:44]} 12. exf6 {[%clk 0:02:53.8]} 12... Ndxf6 {[%clk
0:02:44.5]} 13. Ne5 {[%clk 0:02:52.6]} 13... Nd6 {[%clk 0:02:40.7]} 14. Nf1
{[%clk 0:02:44.9]} 14... Nf7 {[%clk 0:02:33.8]} 15. Ng6 {[%clk 0:02:35.4]} 15...
Re8 {[%clk 0:02:34.2]} 16. Ng3 {[%clk 0:02:26.8]} 16... Bd6 {[%clk 0:02:33.5]}
17. Nh5 {[%clk 0:02:20.9]} 17... Nxh5 {[%clk 0:02:24.7]} 18. Qxh5 {[%clk
0:02:19.6]} 18... Qf6 {[%clk 0:02:25.2]} 19. Bd2 {[%clk 0:02:04.8]} 19... Bd7
{[%clk 0:02:21.6]} 20. Ne5 {[%clk 0:01:59.1]} 20... Re7 {[%clk 0:01:47.6]} 21.
Ng4 {[%clk 0:01:50.2]} 21... g6 {[%clk 0:01:35.8]} 22. Nxf6+ {[%clk 0:01:47.7]}
1-0

[Event "*** Titled Tuesday Blitz"]
[Site "Chess.com"]
[Date "2020.04.14"]
[Round "3"]
[White "Khamrakulov_Djurabek"]
[Black "Sven_Tica"]
[Result "1-0"]
[WhiteElo "2910"]
[BlackElo "2664"]
[TimeControl "180+1"]
[EndTime "10:24:37 PDT"]
[Termination "Khamrakulov_Djurabek won by resignation"]

1. e4 {[%clk 0:03:00.9]} 1... c5 {[%clk 0:03:00.1]} 2. c3 {[%clk 0:03:00.7]}
2... Nf6 {[%clk 0:02:59.2]} 3. e5 {[%clk 0:03:00.6]} 3... Nd5 {[%clk 0:02:59.9]}
4. d4 {[%clk 0:03:00.4]} 4... cxd4 {[%clk 0:03:00.5]} 5. Nf3 {[%clk 0:03:01]}
5... e6 {[%clk 0:03:01]} 6. cxd4 {[%clk 0:03:01.2]} 6... b6 {[%clk 0:03:01.5]}
7. Bc4 {[%clk 0:03:01.2]} 7... Bb7 {[%clk 0:02:59.7]} 8. O-O {[%clk 0:03:00.8]}
8... d6 {[%clk 0:02:59.9]} 9. Bd2 {[%clk 0:02:59.4]} 9... Nd7 {[%clk 0:03:00.1]}
10. Nc3 {[%clk 0:02:59.7]} 10... Nxc3 {[%clk 0:02:58.7]} 11. Bxc3 {[%clk
0:02:59.9]} 11... Rc8 {[%clk 0:02:58.1]} 12. Bb3 {[%clk 0:02:40.3]} 12... Be7
{[%clk 0:02:55.6]} 13. d5 {[%clk 0:02:34.4]} 13... exd5 {[%clk 0:02:44.4]} 14.
exd6 {[%clk 0:02:32.3]} 14... Bf6 {[%clk 0:02:43.7]} 15. Re1+ {[%clk 0:02:28.7]}
15... Kf8 {[%clk 0:02:44]} 16. Bxd5 {[%clk 0:02:28.7]} 16... Bxd5 {[%clk
0:02:41.5]} 17. Qxd5 {[%clk 0:02:29.6]} 17... Bxc3 {[%clk 0:02:41.8]} 18. bxc3
{[%clk 0:02:26.2]} 18... Nf6 {[%clk 0:02:39.2]} 19. Qd4 {[%clk 0:02:13.1]} 19...
Rc6 {[%clk 0:02:35.8]} 20. Rad1 {[%clk 0:02:12]} 20... h5 {[%clk 0:02:29.3]} 21.
Ne5 {[%clk 0:01:59.5]} 21... Rc5 {[%clk 0:02:28.1]} 22. d7 {[%clk 0:01:57.4]}
22... Rh6 {[%clk 0:02:27.4]} 23. Qd6+ {[%clk 0:01:53.7]} 23... Kg8 {[%clk
0:02:27.8]} 24. Nc6 {[%clk 0:01:53.6]} 24... Qxd7 {[%clk 0:02:01.8]} 25. Qb8+
{[%clk 0:01:52.2]} 25... Kh7 {[%clk 0:01:59.8]} 26. Rxd7 {[%clk 0:01:51.1]}
26... Nxd7 {[%clk 0:02:00.1]} 27. Qxa7 {[%clk 0:01:50]} 27... Rhxc6 {[%clk
0:01:59.3]} 28. Qxd7 {[%clk 0:01:49.3]} 28... Rxc3 {[%clk 0:02:00.2]} 29. Qxf7
{[%clk 0:01:47.6]} 29... Rc1 {[%clk 0:02:01.1]} 30. Qxh5+ {[%clk 0:01:47.1]}
30... Kg8 {[%clk 0:02:00.5]} 31. Qe8+ {[%clk 0:01:47.1]} 31... Kh7 {[%clk
0:02:00.5]} 32. h4 {[%clk 0:01:47.2]} 1-0

[Event "*** Titled Tuesday Blitz"]
[Site "Chess.com"]
[Date "2020.04.14"]
[Round "3"]
[White "machupichu10"]
[Black "Er_is_geen_hoop_meer"]
[Result "1-0"]
[WhiteElo "2802"]
[BlackElo "2473"]
[TimeControl "180+1"]
[EndTime "10:24:58 PDT"]
[Termination "machupichu10 won by resignation"]

1. d4 {[%clk 0:03:00.9]} 1... g6 {[%clk 0:03:00.9]} 2. c4 {[%clk 0:03:00.7]}
2... Bg7 {[%clk 0:03:00.9]} 3. Nc3 {[%clk 0:03:01.2]} 3... d6 {[%clk 0:03:01.4]}
4. Nf3 {[%clk 0:03:00.4]} 4... e5 {[%clk 0:03:01.5]} 5. dxe5 {[%clk 0:03:00.1]}
5... dxe5 {[%clk 0:03:02.4]} 6. Qxd8+ {[%clk 0:03:00.4]} 6... Kxd8 {[%clk
0:03:03.3]} 7. Bg5+ {[%clk 0:03:00]} 7... f6 {[%clk 0:03:03.6]} 8. O-O-O+ {[%clk
0:03:00.5]} 8... Bd7 {[%clk 0:03:04]} 9. Be3 {[%clk 0:03:00.1]} 9... Nc6 {[%clk
0:03:04.4]} 10. g4 {[%clk 0:02:57.5]} 10... Kc8 {[%clk 0:03:03.5]} 11. h3 {[%clk
0:02:54.1]} 11... h5 {[%clk 0:02:53.9]} 12. Bg2 {[%clk 0:02:47.3]} 12... g5
{[%clk 0:02:50.1]} 13. Nd2 {[%clk 0:02:24.1]} 13... Nh6 {[%clk 0:02:46]} 14.
Bxc6 {[%clk 0:02:08.2]} 14... Bxc6 {[%clk 0:02:44]} 15. f3 {[%clk 0:02:08.3]}
15... Nf7 {[%clk 0:02:30.3]} 16. Nde4 {[%clk 0:02:08.3]} 16... b6 {[%clk
0:02:26.9]} 17. Nd5 {[%clk 0:02:08]} 17... Rh6 {[%clk 0:02:18.9]} 18. Ne7+
{[%clk 0:01:55.7]} 18... Kb7 {[%clk 0:02:17.7]} 19. Nf5 {[%clk 0:01:20.6]} 19...
Rh7 {[%clk 0:02:11.8]} 20. Nxg7 {[%clk 0:01:20.5]} 20... Bxe4 {[%clk 0:02:12]}
21. Nxh5 {[%clk 0:01:18.2]} 21... Rxh5 {[%clk 0:02:03.1]} 22. gxh5 {[%clk
0:01:17.5]} 22... Bc6 {[%clk 0:02:04]} 23. h4 {[%clk 0:01:17.1]} 23... g4 {[%clk
0:02:04]} 24. fxg4 {[%clk 0:01:14.8]} 24... Bxh1 {[%clk 0:02:04.9]} 25. Rxh1
{[%clk 0:01:14.9]} 25... Rg8 {[%clk 0:02:05.2]} 26. g5 {[%clk 0:01:13.9]} 26...
fxg5 {[%clk 0:02:05.2]} 27. hxg5 {[%clk 0:01:14.8]} 27... Nxg5 {[%clk
0:02:06.1]} 28. Rg1 {[%clk 0:01:14.2]} 28... Rh8 {[%clk 0:02:04.4]} 29. Rxg5
{[%clk 0:01:14.1]} 1-0

[Event "*** Titled Tuesday Blitz"]
[Site "Chess.com"]
[Date "2020.04.14"]
[Round "3"]
[White "mattcolins2025"]
[Black "atbenina64"]
[Result "0-1"]
[WhiteElo "2281"]
[BlackElo "2515"]
[TimeControl "180+1"]
[EndTime "10:24:58 PDT"]
[Termination "atbenina64 won by resignation"]

1. d4 {[%clk 0:03:00.9]} 1... d5 {[%clk 0:02:58.7]} 2. c4 {[%clk 0:03:01.2]}
2... c6 {[%clk 0:02:59.2]} 3. Nc3 {[%clk 0:03:01.4]} 3... Nf6 {[%clk 0:02:59]}
4. Nf3 {[%clk 0:03:01.7]} 4... e6 {[%clk 0:02:58.8]} 5. Bg5 {[%clk 0:03:01.5]}
5... dxc4 {[%clk 0:02:57.7]} 6. e4 {[%clk 0:03:00.1]} 6... b5 {[%clk 0:02:57.6]}
7. e5 {[%clk 0:03:00.3]} 7... h6 {[%clk 0:02:57.9]} 8. Bh4 {[%clk 0:02:59.9]}
8... g5 {[%clk 0:02:58.1]} 9. Nxg5 {[%clk 0:03:00.2]} 9... hxg5 {[%clk 0:02:59]}
10. Bxg5 {[%clk 0:02:59.8]} 10... Nbd7 {[%clk 0:02:59.9]} 11. g3 {[%clk
0:02:58.6]} 11... Qb6 {[%clk 0:02:47.8]} 12. exf6 {[%clk 0:02:57.6]} 12... Bb7
{[%clk 0:02:48.1]} 13. Bg2 {[%clk 0:02:56.3]} 13... O-O-O {[%clk 0:02:48.3]} 14.
O-O {[%clk 0:02:53.6]} 14... c5 {[%clk 0:02:48.1]} 15. d5 {[%clk 0:02:39.4]}
15... b4 {[%clk 0:02:47.1]} 16. Na4 {[%clk 0:02:38.9]} 16... Qb5 {[%clk
0:02:46.5]} 17. dxe6 {[%clk 0:02:09]} 17... Bxg2 {[%clk 0:02:42.8]} 18. Kxg2
{[%clk 0:02:08.8]} 18... Qc6+ {[%clk 0:02:38.3]} 19. Kg1 {[%clk 0:02:07.1]}
19... Ne5 {[%clk 0:02:24.6]} 20. f4 {[%clk 0:01:38.9]} 20... Rxd1 {[%clk
0:02:21.7]} 21. Raxd1 {[%clk 0:01:38.4]} 21... Nf3+ {[%clk 0:02:14.5]} 22. Rxf3
{[%clk 0:01:31.1]} 22... Qxf3 {[%clk 0:02:15.4]} 23. Re1 {[%clk 0:01:30.5]}
23... fxe6 {[%clk 0:02:07.2]} 24. f7 {[%clk 0:01:21]} 24... Bg7 {[%clk
0:01:58.5]} 0-1

[Event "*** Titled Tuesday Blitz"]
[Site "Chess.com"]
[Date "2020.04.14"]
[Round "3"]
[White "Falia-p"]
[Black "CMS13"]
[Result "0-1"]
[WhiteElo "2319"]
[BlackElo "2136"]
[TimeControl "180+1"]
[EndTime "10:24:59 PDT"]
[Termination "CMS13 won by resignation"]

1. e4 {[%clk 0:03:00.9]} 1... e5 {[%clk 0:02:59.7]} 2. Nf3 {[%clk 0:03:00.8]}
2... Nc6 {[%clk 0:02:59.3]} 3. Bb5 {[%clk 0:03:00.2]} 3... Bc5 {[%clk 0:02:59]}
4. O-O {[%clk 0:02:59]} 4... Qf6 {[%clk 0:02:59.2]} 5. d3 {[%clk 0:02:54.2]}
5... h6 {[%clk 0:02:58.9]} 6. Be3 {[%clk 0:02:52.3]} 6... Bb6 {[%clk 0:02:59]}
7. Nbd2 {[%clk 0:02:51.5]} 7... Nge7 {[%clk 0:02:58.4]} 8. Nc4 {[%clk
0:02:51.3]} 8... O-O {[%clk 0:02:58.2]} 9. Nxb6 {[%clk 0:02:50.7]} 9... axb6
{[%clk 0:02:57.9]} 10. d4 {[%clk 0:02:47.9]} 10... d6 {[%clk 0:02:55.5]} 11.
dxe5 {[%clk 0:02:42.1]} 11... dxe5 {[%clk 0:02:53.9]} 12. h3 {[%clk 0:02:37]}
12... Qg6 {[%clk 0:02:52]} 13. Kh2 {[%clk 0:02:27.5]} 13... Qxe4 {[%clk
0:02:51.4]} 14. Re1 {[%clk 0:02:17]} 14... Qg6 {[%clk 0:02:42.2]} 15. Bd3 {[%clk
0:02:11.7]} 15... e4 {[%clk 0:02:31.9]} 16. Nh4 {[%clk 0:01:52.2]} 16... Qf6
{[%clk 0:02:29.2]} 17. Bxe4 {[%clk 0:01:46.9]} 17... Qxh4 {[%clk 0:02:28.1]} 18.
f3 {[%clk 0:01:45.4]} 18... Be6 {[%clk 0:01:59.3]} 19. a3 {[%clk 0:01:42.8]}
19... Nf5 {[%clk 0:01:42.1]} 20. Bf2 {[%clk 0:01:28]} 20... Qxf2 {[%clk
0:01:34.5]} 0-1